bitfinex-derivatives/quotes_BTCF0:USTF0_20250901
["timestamp","ask_amount","ask_price","bid_price","bid_amount"]
[1756760896102,1.6121866,108670.0,108660.0,0.05093]
[1756760896302,1.6121866,108670.0,108660.0,0.08472]
[1756760899402,1.6121866,108670.0,108660.0,0.004]
[1756760899606,1.99659007,108670.0,108660.0,0.004]
[1756760900598,2.24659007,108670.0,108660.0,0.004]
[1756760900804,2.42659007,108670.0,108660.0,1e-07]
[1756760901002,2.59659007,108670.0,108660.0,1e-07]
[1756760901508,2.59659007,108670.0,108630.0,0.42681942]
[1756760901693,1.12960694,108640.0,108600.0,0.11565765]
[1756760901999,0.3608,108620.0,108610.0,0.08072]
[1756760902199,1.786,108620.0,108610.0,0.08072]
[1756760902403,0.7408,108620.0,108610.0,0.08072]
[1756760902601,2.17032347,108620.0,108600.0,0.04693]
[1756760902795,0.74520347,108610.0,108580.0,0.46512347]
[1756760902996,0.6808,108610.0,108600.0,0.001]
[1756760903304,1.7258,108610.0,108600.0,0.09639]
[1756760903607,1.80741466,108610.0,108600.0,0.73079347]
[1756760903801,1.79791975,108610.0,108600.0,0.72979347]
[1756760904103,1.79791975,108610.0,108600.0,0.34539]
[1756760904303,1.79891975,108610.0,108600.0,0.34539]
[1756760904511,1.80291975,108610.0,108600.0,0.34539]
[1756760904808,2.18732322,108610.0,108600.0,0.04693]
[1756760905009,2.18732322,108610.0,108590.0,0.08072]
[1756760905507,0.3608,108600.0,108590.0,0.08072]
[1756760905709,1.40552,108600.0,108590.0,0.08072]
[1756760906409,1.78992347,108600.0,108590.0,0.33072]
[1756760906706,2.14992347,108600.0,108590.0,0.33172]
[1756760906894,2.14992347,108600.0,108590.0,0.29793]
[1756760907099,2.15092347,108600.0,108590.0,0.003]
[1756760907295,2.40092347,108600.0,108590.0,0.003]
[1756760908007,2.78532694,108600.0,108590.0,0.003]
[1756760908804,2.15064347,108600.0,108590.0,0.04993]
[1756760909008,2.15064347,108600.0,108590.0,0.08372]
[1756760909307,2.24272777,108600.0,108590.0,0.04993]
[1756760909500,2.24272777,108600.0,108590.0,0.003]
[1756760910109,2.24252777,108600.0,108590.0,0.003]
[1756760910308,2.34479977,108600.0,108590.0,0.003]
[1756760910515,1.30055977,108600.0,108590.0,0.003]
[1756760910809,2.34467977,108600.0,108590.0,0.003]
[1756760912010,2.59467977,108600.0,108590.0,0.003]
[1756760912401,1.55055977,108600.0,108590.0,0.003]
[1756760912602,1.6899963,108600.0,108590.0,0.08372]
[1756760912805,1.9099963,108600.0,108590.0,0.08372]
[1756760913011,1.9099963,108600.0,108590.0,0.003]
[1756760913012,2.29439977,108600.0,108590.0,0.003]
[1756760914912,2.95880324,108600.0,108590.0,0.003]
[1756760917607,1.53055977,108600.0,108590.0,0.003]
[1756760917808,2.57363977,108600.0,108590.0,0.003]
[1756760918512,2.95804324,108600.0,108590.0,0.003]
[1756760919411,2.57363977,108600.0,108590.0,0.003]
[1756760919902,1.91496324,108600.0,108590.0,0.003]
[1756760920109,2.57323977,108600.0,108590.0,0.003]
[1756760920413,2.69292116,108600.0,108590.0,0.003]
[1756760920613,2.69292116,108600.0,108570.0,0.08039]
[1756760920915,0.3608,108580.0,108570.0,0.08039]
[1756760921313,0.74520347,108580.0,108570.0,0.08039]
[1756760922015,1.40332,108580.0,108570.0,0.08039]
[1756760922210,1.78772347,108580.0,108570.0,0.08039]
[1756760922406,1.78772347,108580.0,108570.0,0.04627]
[1756760922611,1.78772347,108580.0,108570.0,0.08139]
[1756760923122,1.78772347,108580.0,108570.0,0.08339]
[1756760923411,0.3618,108580.0,108570.0,0.33439]
[1756760923603,1.40416,108580.0,108570.0,0.33439]
[1756760924018,1.71223295,108580.0,108570.0,0.33439]
[1756760924214,0.001,108580.0,108570.0,0.64146295]
[1756760924408,0.001,108580.0,108570.0,1.7324451]
[1756760924611,0.001,108580.0,108570.0,1.4024451]
[1756760924813,0.001,108580.0,108570.0,1.44437215]
[1756760925410,0.103272,108580.0,108570.0,1.44437215]
[1756760926113,0.103272,108580.0,108570.0,1.1362992]
[1756760926312,0.103272,108580.0,108570.0,1.52126295]
[1756760927615,0.103272,108580.0,108570.0,1.1362992]
[1756760927815,0.103272,108580.0,108570.0,0.44419]
[1756760928021,0.103272,108580.0,108570.0,0.69419]
[1756760928216,0.5561727,108580.0,108570.0,0.08339]
[1756760928521,1.5973727,108580.0,108570.0,0.08339]
[1756760928922,0.5561727,108580.0,108570.0,0.71835375]
[1756760929120,0.1953727,108580.0,108570.0,0.71835375]
[1756760930024,0.1953727,108580.0,108570.0,0.33339]
[1756760930221,0.1953727,108580.0,108570.0,0.04927]
[1756760930426,0.94113645,108580.0,108570.0,0.003]
[1756760931022,1.19113645,108580.0,108570.0,0.003]
[1756760931319,1.21243474,108580.0,108570.0,0.003]
[1756760931823,1.31243474,108580.0,108570.0,0.003]
[1756760932024,1.55243474,108580.0,108570.0,0.003]
[1756760932826,2.59279474,108580.0,108570.0,0.003]
[1756760933116,1.55443474,108580.0,108570.0,0.001]
[1756760933316,2.59467474,108580.0,108570.0,0.001]
[1756760933522,2.50657404,108580.0,108540.0,0.08039]
[1756760933720,0.3608,108550.0,108540.0,0.08039]
[1756760934126,0.3608,108560.0,108550.0,0.09435]
[1756760934329,0.3608,108560.0,108550.0,0.47931375]
[1756760934724,0.3608,108570.0,108560.0,0.08039]
[1756760934917,1.42216033,108570.0,108560.0,0.08039]
[1756760935438,0.48439233,108570.0,108560.0,0.08039]
[1756760935727,0.463072,108570.0,108560.0,0.08039]
[1756760935923,1.502912,108570.0,108560.0,0.08039]
[1756760936431,1.506912,108570.0,108560.0,0.08039]
[1756760937024,1.506832,108570.0,108560.0,0.08039]
[1756760937226,1.5989479,108570.0,108560.0,0.08039]
[1756760937430,1.5987879,108570.0,108560.0,0.08039]
[1756760938329,0.0921266,108550.0,108540.0,0.08039]
[1756760938725,1.4922466,108550.0,108540.0,0.08039]
[1756760939325,1.4922466,108550.0,108540.0,0.04627]
[1756760939531,1.88740328,108550.0,108540.0,0.04727]
[1756760939727,1.88740328,108550.0,108540.0,0.08339]
[1756760940118,1.50243953,108550.0,108540.0,0.08339]
[1756760940322,1.60471153,108550.0,108540.0,0.08339]
[1756760940731,1.60471153,108550.0,108540.0,0.04927]
[1756760941225,1.60471153,108550.0,108540.0,0.08339]
[1756760942627,1.67885247,108550.0,108540.0,0.08339]
[1756760943233,1.67885247,108550.0,108540.0,0.04927]
[1756760944834,1.67885247,108550.0,108540.0,0.08339]
[1756760945030,0.63033954,108550.0,108540.0,0.08339]
[1756760945237,0.1730605,108590.0,108580.0,0.04781]
[1756760945422,0.1730605,108590.0,108580.0,0.38496375]
[1756760945423,0.91489939,108590.0,108580.0,0.38496375]
[1756760945629,0.91489939,108590.0,108570.0,0.44631375]
[1756760945630,0.1377112,108580.0,108570.0,0.44631375]
[1756760945925,0.5338612,108580.0,108570.0,0.40903375]
[1756760946132,0.0921097,108570.0,108560.0,0.44631375]
[1756760946328,0.1730697,108570.0,108560.0,0.40903375]
[1756760946524,0.1730782,108560.0,108550.0,0.48852058]
[1756760946729,0.0921182,108560.0,108550.0,1.19064728]
[1756760947024,0.1151982,108560.0,108550.0,0.84932058]
[1756760947227,1.2105582,108560.0,108540.0,0.74676375]
[1756760947431,0.4555,108550.0,108540.0,0.41003375]
[1756760947928,0.4555,108550.0,108540.0,0.38596375]
[1756760948239,0.4555,108550.0,108540.0,0.38496375]
[1756760948929,0.4555,108550.0,108540.0,0.43277375]
[1756760949129,0.04561,108550.0,108540.0,0.72005375]
[1756760949327,0.08196,108550.0,108540.0,0.72205375]
[1756760949540,0.08196,108550.0,108540.0,0.33709]
[1756760949728,0.08196,108550.0,108540.0,0.72205375]
[1756760950330,0.184232,108550.0,108540.0,0.72205375]
[1756760950534,0.184232,108550.0,108540.0,0.47205375]
[1756760951436,0.148882,108550.0,108540.0,1.07285375]
[1756760952136,0.184232,108550.0,108540.0,0.83285375]
[1756760954136,0.2763587,108550.0,108540.0,0.44789]
[1756760954338,0.2763587,108550.0,108540.0,0.83285375]
[1756760954728,0.2900987,108550.0,108540.0,0.41103375]
[1756760955333,0.2900987,108550.0,108540.0,0.47205375]
[1756760956931,0.103272,108550.0,108540.0,1.52499025]
[1756760957242,0.103272,108550.0,108540.0,2.56027025]
[1756760959336,0.103272,108550.0,108540.0,2.62598961]
[1756760962039,0.184232,108550.0,108540.0,0.99070961]
[1756760962237,0.184232,108550.0,108540.0,2.02490961]
[1756760962839,0.103272,108550.0,108540.0,2.64490961]
[1756760963143,0.1730708,108570.0,108560.0,0.177209]
[1756760963349,0.1730708,108570.0,108560.0,0.98919787]
[1756760963935,0.1377208,108570.0,108560.0,0.98919787]
[1756760964136,0.02308,108580.0,108570.0,0.1772005]
[1756760964434,0.04561,108590.0,108580.0,0.08509]
[1756760964640,0.22561,108590.0,108580.0,0.47005375]
[1756760965140,0.26096,108590.0,108580.0,0.47005375]
[1756760965645,0.26196,108590.0,108580.0,0.47205375]
[1756760966236,0.26296,108590.0,108580.0,0.47205375]
[1756760966441,0.365232,108590.0,108580.0,0.47205375]
[1756760967242,0.726032,108590.0,108580.0,0.47205375]
[1756760967443,0.726032,108590.0,108580.0,0.47105375]
[1756760967748,0.365232,108590.0,108580.0,0.47105375]
[1756760969547,0.726032,108590.0,108580.0,0.47105375]
[1756760970151,0.8181255,108590.0,108580.0,0.47105375]
[1756760970551,0.4573255,108590.0,108580.0,0.47105375]
[1756760971549,0.104272,108590.0,108580.0,0.9877768]
[1756760971753,0.104272,108590.0,108580.0,1.5985768]
[1756760972851,0.104272,108590.0,108580.0,1.53235168]
[1756760973549,0.104272,108590.0,108580.0,1.54175416]
[1756760973759,0.02308,108620.0,108610.0,0.1771665]
[1756760973949,0.372068,108620.0,108610.0,1.95389025]
[1756760974149,0.372068,108620.0,108610.0,1.95381025]
[1756760975054,0.375068,108620.0,108610.0,1.95481025]
[1756760975250,0.289,108620.0,108610.0,1.95481025]
[1756760975453,0.101068,108620.0,108610.0,1.95481025]
[1756760976154,0.100068,108620.0,108610.0,1.95481025]
[1756760976950,0.28634,108620.0,108610.0,1.95381025]
[1756760977151,0.108272,108620.0,108610.0,2.57481025]
[1756760977747,0.106272,108620.0,108610.0,2.63084177]
[1756760978054,0.102272,108620.0,108610.0,2.63084177]
[1756760978256,0.103272,108620.0,108610.0,2.56781025]
[1756760978652,0.103272,108620.0,108610.0,2.57081025]
[1756760979053,0.103272,108620.0,108610.0,1.53993025]
[1756760979261,0.103272,108620.0,108610.0,2.57237025]
[1756760979445,0.103272,108620.0,108610.0,1.54293025]
[1756760979759,0.103272,108620.0,108610.0,2.57233025]
[1756760979948,0.103272,108620.0,108610.0,2.23233025]
[1756760980252,0.03466,108650.0,108630.0,0.1382665]
[1756760980458,0.41659,108650.0,108640.0,1.45068375]
[1756760980844,0.45125,108650.0,108640.0,1.49681375]
[1756760981266,0.45225,108650.0,108640.0,1.49681375]
[1756760981855,0.45225,108650.0,108640.0,1.49781375]
[1756760983458,0.554522,108650.0,108640.0,1.49717375]
[1756760983653,0.555522,108650.0,108640.0,1.49717375]
[1756760985055,0.6475685,108650.0,108640.0,1.49717375]
[1756760989776,0.6475685,108650.0,108640.0,0.46881375]
[1756760989956,0.6475685,108650.0,108640.0,1.49529375]
[1756760993158,0.9112085,108650.0,108640.0,0.02436]
[1756760993366,1.2720085,108650.0,108640.0,0.001]
[1756760999265,1.0220085,108650.0,108640.0,0.001]
[1756760999466,1.57971438,108650.0,108640.0,0.001]
[1756760999666,1.35022845,108650.0,108640.0,0.001]
[1756761002858,1.04252257,108650.0,108640.0,0.001]
[1756761003062,1.35022845,108650.0,108640.0,0.001]
[1756761004163,1.60022845,108650.0,108640.0,0.001]
[1756761006676,1.29252257,108650.0,108640.0,0.001]
[1756761006979,2.06396257,108650.0,108640.0,0.39161588]
[1756761010670,1.02888257,108650.0,108640.0,0.64161588]
[1756761010872,0.63342257,108650.0,108640.0,0.73366728]
[1756761011173,0.2429085,108650.0,108640.0,1.13187096]
[1756761011962,0.1963185,108650.0,108640.0,0.80187096]
[1756761012161,0.2191985,108650.0,108640.0,0.70981956]
[1756761012571,0.2433685,108650.0,108640.0,0.70981956]
[1756761013065,0.2779185,108650.0,108640.0,0.70981956]
[1756761014572,0.2915885,108650.0,108640.0,0.45981956]
[1756761014875,0.8123885,108650.0,108640.0,0.45981956]
[1756761016271,0.8123885,108650.0,108640.0,0.06920368]
[1756761019385,1.8301485,108650.0,108640.0,0.45981956]
[1756761019577,1.8301485,108650.0,108640.0,0.15211368]
[1756761019778,1.8301485,108650.0,108640.0,0.45981956]
[1756761020973,1.8301485,108650.0,108640.0,0.46441956]
[1756761022376,1.8301485,108650.0,108640.0,0.10343039]
[1756761022582,1.8301485,108650.0,108640.0,0.05527039]
[1756761023276,2.0201485,108650.0,108640.0,0.05527039]
[1756761025071,2.57785438,108650.0,108640.0,0.05527039]
[1756761025283,0.0816,108640.0,108620.0,0.16768399]
[1756761025485,0.4424,108630.0,108620.0,0.08490259]
[1756761025689,1.45792,108630.0,108620.0,0.08490259]
[1756761025976,1.45792,108630.0,108620.0,0.39260847]
[1756761026182,1.45792,108630.0,108620.0,0.08490259]
[1756761026787,1.45792,108630.0,108620.0,0.39260847]
[1756761027083,1.45792,108630.0,108620.0,0.08690259]
[1756761027682,1.45792,108630.0,108620.0,0.08490259]
[1756761027982,1.45792,108630.0,108620.0,0.08690259]
[1756761030289,1.560192,108630.0,108620.0,0.08690259]
[1756761031087,1.560192,108630.0,108620.0,0.41854847]
[1756761031388,1.558512,108630.0,108620.0,0.47751847]
[1756761031574,1.558512,108630.0,108620.0,0.44276847]
[1756761032284,1.558512,108630.0,108620.0,0.47751847]
[1756761032684,0.544672,108630.0,108620.0,0.41148695]
[1756761032893,0.2759319,108630.0,108620.0,0.47751847]
[1756761036887,0.2759319,108630.0,108620.0,0.08690259]
[1756761037088,1.04443778,108630.0,108620.0,0.02087107]
[1756761037294,1.27443778,108630.0,108620.0,0.02087107]
[1756761037489,1.27443778,108630.0,108610.0,0.4112074]
[1756761037490,1.48988778,108630.0,108610.0,0.06603152]
[1756761037689,1.72824588,108620.0,108600.0,0.06603152]
[1756761037991,0.44461,108610.0,108600.0,0.06603152]
[1756761038193,0.44461,108610.0,108600.0,0.08932152]
[1756761038393,0.44461,108610.0,108600.0,0.4197574]
[1756761038588,0.44461,108610.0,108600.0,0.4572274]
[1756761038981,0.44161,108610.0,108600.0,0.4572274]
[1756761039387,0.44161,108610.0,108600.0,0.39119588]
[1756761039792,0.44161,108610.0,108600.0,0.94890176]
[1756761039793,0.08081,108610.0,108600.0,0.94890176]
[1756761039992,0.08081,108610.0,108600.0,1.37573328]
[1756761039993,0.02411,108610.0,108600.0,1.37573328]
[1756761040188,0.04802,108610.0,108600.0,1.37573328]
[1756761040382,0.150292,108610.0,108600.0,1.37573328]
[1756761040584,0.150292,108610.0,108600.0,1.0720274]
[1756761041191,0.186082,108610.0,108600.0,1.0720274]
[1756761041999,0.186082,108610.0,108600.0,1.14910187]
[1756761042496,0.186082,108610.0,108600.0,0.78830187]
[1756761042702,0.546882,108610.0,108600.0,0.47227035]
[1756761044498,0.55612721,108610.0,108600.0,0.47227035]
[1756761044697,0.546882,108610.0,108600.0,0.47227035]
[1756761045205,0.6389584,108610.0,108600.0,0.47227035]
[1756761051405,0.6389584,108610.0,108600.0,0.53830187]
[1756761059914,0.6389584,108610.0,108600.0,0.15352152]
[1756761060216,0.6389584,108610.0,108600.0,0.53830187]
[1756761060814,0.6389584,108610.0,108600.0,0.15352152]
[1756761061019,0.6409584,108610.0,108600.0,0.54330187]
[1756761061217,0.2801584,108610.0,108600.0,0.90410187]
[1756761061514,0.2801584,108610.0,108600.0,0.54330187]
[1756761062219,0.2801584,108610.0,108600.0,0.46334754]
[1756761062719,0.2801584,108610.0,108600.0,1.13197356]
[1756761063214,0.6409584,108610.0,108600.0,0.07203152]
[1756761063411,0.6389584,108610.0,108600.0,0.11205152]
[1756761063612,0.6419584,108610.0,108600.0,0.11605152]
[1756761063818,0.6419584,108610.0,108600.0,0.42387754]
[1756761064117,0.6409584,108610.0,108600.0,0.41987754]
[1756761064312,0.6419584,108610.0,108600.0,0.45834754]
[1756761065724,0.6419584,108610.0,108600.0,0.37485754]
[1756761066423,0.6419584,108610.0,108600.0,0.39960754]
[1756761066716,0.6419584,108610.0,108600.0,0.09178152]
[1756761067515,0.71447484,108610.0,108600.0,0.09178152]
[1756761067824,0.71447484,108610.0,108600.0,0.11481152]
[1756761068122,0.6419584,108610.0,108600.0,0.42263754]
[1756761069124,0.6419584,108610.0,108600.0,0.45900754]
[1756761069422,0.6419584,108610.0,108600.0,0.42263754]
[1756761070514,0.6419584,108610.0,108600.0,0.11481152]
[1756761070715,0.6419584,108610.0,108600.0,0.06703152]
[1756761070716,1.6425984,108610.0,108600.0,0.06703152]
[1756761070912,1.7325984,108610.0,108600.0,0.06703152]
[1756761071114,1.7325984,108610.0,108600.0,0.11481152]
[1756761071316,1.7325984,108610.0,108600.0,0.45900754]
[1756761071723,1.7325984,108610.0,108600.0,0.39960754]
[1756761071922,2.20042442,108610.0,108600.0,0.06703152]
[1756761072125,2.20042442,108610.0,108600.0,0.001]
[1756761072429,2.56042442,108610.0,108600.0,0.001]
[1756761072825,0.09619,108600.0,108590.0,0.06603152]
[1756761073026,0.08125,108590.0,108580.0,0.10917745]
[1756761073329,0.08125,108590.0,108570.0,0.1191514]
[1756761073330,1.71537602,108590.0,108570.0,0.41022754]
[1756761073530,0.44205,108580.0,108570.0,0.45800754]
[1756761073829,0.44205,108580.0,108570.0,0.39197602]
[1756761074532,0.5341519,108580.0,108570.0,0.0662418]
[1756761074730,0.1733604,108570.0,108560.0,0.0909918]
[1756761074929,0.5341604,108570.0,108560.0,0.04778]
[1756761075223,0.6364324,108570.0,108560.0,0.23313339]
[1756761075424,0.6364324,108570.0,108560.0,0.15035199]
[1756761075630,0.64558739,108570.0,108560.0,0.11398199]
[1756761075929,0.63958739,108570.0,108560.0,0.11398199]
[1756761076131,0.6304324,108570.0,108560.0,0.15035199]
[1756761076333,0.6304324,108570.0,108560.0,0.45817801]
[1756761076525,0.6314324,108570.0,108560.0,0.46117801]
[1756761076725,0.6314324,108570.0,108560.0,0.46217801]
[1756761078131,0.6314324,108570.0,108560.0,0.39597602]
[1756761082134,0.6314324,108570.0,108560.0,0.08815]
[1756761082336,0.6314324,108570.0,108560.0,0.39597602]
[1756761083340,0.6314324,108570.0,108560.0,0.08815]
[1756761083545,0.6314324,108570.0,108560.0,0.39597602]
[1756761085733,1.18925842,108570.0,108560.0,0.05178]
[1756761085946,1.18925842,108570.0,108560.0,0.004]
[1756761089642,0.1883174,108550.0,108540.0,0.10294197]
[1756761089846,0.5491174,108550.0,108540.0,0.06657197]
[1756761090053,0.5491174,108550.0,108540.0,0.10294197]
[1756761090460,0.6513894,108550.0,108540.0,0.41076799]
[1756761090663,0.6513894,108550.0,108540.0,0.10294197]
[1756761090863,0.2905894,108550.0,108540.0,0.41076799]
[1756761091155,0.6513894,108550.0,108540.0,0.41076799]
[1756761091764,0.6543894,108550.0,108540.0,0.41276799]
[1756761091958,0.6394494,108550.0,108540.0,0.97059401]
[1756761092153,0.2786494,108550.0,108540.0,0.97059401]
[1756761092356,0.2776494,108550.0,108540.0,0.96859401]
[1756761092666,0.2216394,108550.0,108540.0,1.06073011]
[1756761092865,0.2216394,108550.0,108540.0,1.32939401]
[1756761094567,0.2216394,108550.0,108540.0,2.32335401]
[1756761095463,0.1983994,108550.0,108540.0,2.63335401]
[1756761095663,0.1983994,108550.0,108540.0,2.64335401]
[1756761096160,0.1983994,108550.0,108540.0,2.73549041]
[1756761097161,0.1983994,108550.0,108540.0,2.32335401]
[1756761097762,0.2812294,108550.0,108540.0,1.34542197]
[1756761097962,0.2812294,108550.0,108540.0,1.38445602]
[1756761099377,0.2452594,108550.0,108540.0,2.05308204]
[1756761099971,0.2812294,108550.0,108540.0,1.74525602]
[1756761100270,0.2812294,108550.0,108540.0,1.81145801]
[1756761101774,0.2812294,108550.0,108540.0,1.80560801]
[1756761103570,0.2812294,108550.0,108540.0,1.80384801]
[1756761107378,0.1983994,108550.0,108540.0,2.11167403]
[1756761109774,0.1983994,108550.0,108540.0,2.53381033]
[1756761109976,0.106272,108550.0,108540.0,2.83381033]
[1756761110774,0.106272,108550.0,108540.0,2.76760834]
[1756761111078,0.106272,108550.0,108540.0,2.81385666]
[1756761111278,0.106272,108550.0,108540.0,2.74760834]
[1756761113881,0.0861104,108570.0,108550.0,0.0921199]
[1756761114193,0.0861104,108570.0,108560.0,1.53619452]
[1756761114484,0.0861104,108570.0,108560.0,1.44407522]
[1756761114675,0.1329704,108570.0,108560.0,0.81695522]
[1756761114877,0.1329704,108570.0,108560.0,1.80415522]
[1756761115077,0.1349704,108570.0,108560.0,1.80415522]
[1756761115278,0.1419704,108570.0,108560.0,1.89627452]
[1756761115675,0.1399704,108570.0,108560.0,1.89627452]
[1756761115876,0.1419704,108570.0,108560.0,1.89727452]
[1756761117079,0.2772124,108570.0,108560.0,1.80447522]
[1756761118474,0.2772124,108570.0,108560.0,0.81795522]
[1756761118674,0.2772124,108570.0,108560.0,1.80431522]
[1756761120191,0.2412424,108570.0,108560.0,1.80431522]
[1756761121382,0.2412424,108570.0,108560.0,1.89643452]
[1756761123799,0.108272,108570.0,108560.0,2.78426054]
[1756761124085,0.108272,108570.0,108560.0,2.71799134]
[1756761124484,0.108272,108570.0,108560.0,2.38799134]
[1756761124688,0.108272,108570.0,108560.0,2.09877547]
[1756761126192,0.2003828,108570.0,108560.0,2.09877547]
[1756761126381,0.2826828,108570.0,108560.0,0.77029617]
[1756761126583,0.2826828,108570.0,108560.0,1.75425617]
[1756761126784,0.108272,108570.0,108560.0,1.84637547]
[1756761127184,0.2003828,108570.0,108560.0,1.84637547]
[1756761128693,0.2003828,108570.0,108560.0,0.77029617]
[1756761128990,0.2003828,108570.0,108560.0,1.75289617]
[1756761129191,0.2003828,108570.0,108560.0,1.84501547]
[1756761130390,0.2003828,108570.0,108560.0,1.75289617]
[1756761130692,0.2468928,108570.0,108560.0,0.46247015]
[1756761130890,0.2810228,108570.0,108560.0,1.75285617]
[1756761131992,0.2468928,108570.0,108560.0,1.84497497]
[1756761132190,0.2468928,108570.0,108560.0,1.91111944]
[1756761132989,0.2810228,108570.0,108560.0,1.81900064]
[1756761133688,0.5310228,108570.0,108560.0,1.14909462]
[1756761133893,1.19964882,108570.0,108560.0,0.06693015]
[1756761134092,0.8918228,108570.0,108560.0,0.04352015]
[1756761134687,1.19964882,108570.0,108560.0,0.06714447]
[1756761134883,1.19964882,108570.0,108560.0,0.001]
[1756761135689,0.0921272,108550.0,108540.0,0.42733995]
[1756761135990,0.1873872,108550.0,108540.0,0.47452995]
[1756761136196,0.1873872,108550.0,108540.0,0.09062447]
[1756761136396,0.1873872,108550.0,108540.0,0.02448]
[1756761136595,0.1873872,108550.0,108540.0,0.04719]
[1756761136792,0.1873872,108550.0,108540.0,0.04819]
[1756761137490,1.10601322,108550.0,108540.0,0.001]
[1756761137693,1.10701322,108550.0,108540.0,0.001]
[1756761137904,0.1262648,108540.0,108530.0,1.32263602]
[1756761138790,0.1262648,108540.0,108530.0,1.38878049]
[1756761139392,0.1292648,108540.0,108530.0,1.38878049]
[1756761139592,0.1302648,108540.0,108530.0,1.38878049]
[1756761140395,0.2325368,108540.0,108530.0,1.38878049]
[1756761141797,0.106272,108540.0,108530.0,2.76955011]
[1756761142398,0.106272,108540.0,108530.0,2.46172409]
[1756761145097,0.106272,108540.0,108530.0,2.39557962]
[1756761145302,0.1984071,108540.0,108530.0,2.39557962]
[1756761146204,0.106272,108540.0,108530.0,2.70340564]
[1756761146705,0.106272,108540.0,108530.0,2.78618704]
[1756761149507,0.198406,108540.0,108530.0,2.70949585]
[1756761151507,0.198406,108540.0,108530.0,2.41949585]
[1756761151810,0.198406,108540.0,108530.0,2.74949585]
[1756761152211,0.106272,108540.0,108530.0,2.74949585]
[1756761153310,0.1984056,108540.0,108530.0,2.74949585]
[1756761155010,0.1984056,108540.0,108530.0,2.41949585]
[1756761155211,0.1984056,108540.0,108530.0,2.72949585]
[1756761155614,0.106272,108540.0,108530.0,2.72949585]
[1756761156205,0.03499,108570.0,108560.0,0.04805]
[1756761156406,0.3538341,108570.0,108560.0,1.79356094]
[1756761157515,0.3578341,108570.0,108560.0,1.79456094]
[1756761158607,0.3628341,108570.0,108560.0,1.79556094]
[1756761161510,0.3628341,108570.0,108560.0,0.82104094]
[1756761161716,0.6128341,108570.0,108560.0,1.75692094]
[1756761161915,0.6128341,108570.0,108560.0,0.42400094]
[1756761162217,0.9736341,108570.0,108560.0,0.11617492]
[1756761162416,1.28146012,108570.0,108560.0,0.06812492]
[1756761162918,1.28146012,108570.0,108560.0,0.002]
[1756761165516,0.173835,108560.0,108550.0,0.06612492]
[1756761165717,0.84246102,108560.0,108540.0,1.97137094]
[1756761165924,0.1884734,108550.0,108540.0,0.81904094]
[1756761166614,0.1738434,108550.0,108540.0,0.81904094]
[1756761167421,0.1738434,108550.0,108540.0,0.83569742]
[1756761168722,0.1768434,108550.0,108540.0,0.83569742]
[1756761168923,0.1788434,108550.0,108540.0,0.83669742]
[1756761169330,0.1788434,108550.0,108540.0,0.75391602]
[1756761170320,0.1205334,108550.0,108540.0,0.75391602]
[1756761170517,0.0971234,108550.0,108540.0,1.06174204]
[1756761171219,0.1438534,108550.0,108540.0,0.75391602]
[1756761175026,0.1438534,108550.0,108540.0,0.82016962]
[1756761175224,0.1438534,108550.0,108540.0,0.75391602]
[1756761175629,0.0971234,108550.0,108540.0,0.75391602]
[1756761175835,0.1205334,108550.0,108540.0,1.06174204]
[1756761177037,0.1205334,108550.0,108540.0,1.14452344]
[1756761177532,0.1438534,108550.0,108540.0,0.83669742]
[1756761179137,0.1788434,108550.0,108540.0,0.5288714]
[1756761179323,0.1438534,108550.0,108540.0,0.83669742]
[1756761180431,0.1205334,108550.0,108540.0,0.83669742]
[1756761180633,0.1438534,108550.0,108540.0,0.83669742]
[1756761180834,0.1788434,108550.0,108540.0,0.5288714]
[1756761181034,0.1788434,108550.0,108540.0,0.83669742]
[1756761181238,0.1788434,108550.0,108540.0,0.75391602]
[1756761181539,0.1438534,108550.0,108540.0,0.75391602]
[1756761182437,0.1788434,108550.0,108540.0,0.44609]
[1756761182628,0.1788434,108550.0,108540.0,0.75391602]
[1756761183033,0.1788434,108550.0,108540.0,0.39311602]
[1756761183237,0.1788434,108550.0,108540.0,0.75391602]
[1756761183438,0.1788434,108550.0,108540.0,1.71931602]
[1756761183629,0.1788434,108550.0,108540.0,1.78556681]
[1756761184836,0.4288434,108550.0,108540.0,0.15154079]
[1756761185039,0.4426234,108550.0,108540.0,0.08647]
[1756761185241,0.4426234,108550.0,108540.0,0.39429602]
[1756761185834,0.4426234,108550.0,108540.0,0.08647]
[1756761186036,0.4426234,108550.0,108540.0,0.39429602]
[1756761186446,0.4426234,108550.0,108540.0,0.08647]
[1756761186948,0.8034234,108550.0,108540.0,0.06725079]
[1756761187237,1.11124942,108550.0,108540.0,0.001]
[1756761187429,0.8034234,108550.0,108540.0,0.02586]
[1756761187628,1.11124942,108550.0,108540.0,0.001]
[1756761189244,0.8034234,108550.0,108540.0,0.001]
[1756761189441,1.11124942,108550.0,108540.0,0.02586]
[1756761189841,1.11124942,108550.0,108540.0,0.001]
[1756761190742,1.11124942,108550.0,108540.0,0.02586]
[1756761190944,1.11124942,108550.0,108540.0,0.06725079]
[1756761191542,1.11124942,108550.0,108540.0,0.001]
[1756761192641,1.18440279,108550.0,108540.0,0.001]
[1756761194835,1.82467677,108550.0,108540.0,0.08623]
[1756761195038,0.86279677,108550.0,108540.0,0.39405602]
[1756761195640,0.87657677,108550.0,108540.0,0.08623]
[1756761196348,0.87657677,108550.0,108540.0,0.04881]
[1756761196549,0.87657677,108550.0,108540.0,0.08623]
[1756761197952,1.21295677,108550.0,108540.0,0.46030681]
[1756761198452,1.21295677,108550.0,108540.0,0.08623]
[1756761198751,1.21295677,108550.0,108540.0,0.39405602]
[1756761198947,0.25199677,108550.0,108540.0,0.64405602]
[1756761199158,0.25199677,108550.0,108540.0,0.71030681]
[1756761199953,0.25199677,108550.0,108540.0,0.40248079]
[1756761200157,0.25199677,108550.0,108540.0,0.71030681]
[1756761204362,0.005,108550.0,108540.0,1.47107796]
[1756761204551,0.005,108550.0,108540.0,1.81107796]
[1756761204859,0.005,108550.0,108540.0,1.74481444]
[1756761205559,0.005,108550.0,108540.0,1.31268204]
[1756761205762,0.005,108550.0,108540.0,1.40481444]
[1756761206156,0.0971239,108550.0,108540.0,1.40481444]
[1756761206647,0.0971239,108550.0,108540.0,1.31268204]
[1756761206844,0.1310739,108550.0,108540.0,1.00485602]
[1756761207265,0.1310739,108550.0,108540.0,1.08763742]
[1756761207453,0.1310739,108550.0,108540.0,1.17976972]
[1756761207454,0.0971239,108550.0,108540.0,1.17976972]
[1756761207653,0.0971239,108550.0,108540.0,1.48759574]